Cogmind - Beta 15 *** ADVENTURER MODE // 2025.05.23 @ 01:47:58 Player: Seralth Result: Destroyed by Y-45 Defender with Beam Rifle Performance ------------- Evolutions (2) 1000 Regions Visited (4) 800 Robots Destroyed (50) 250 Value Destroyed (1219) 1219 Prototype IDs (0) 0 Alien Tech Used (0) 0 Bonus (61) 61 TOTAL SCORE: 3330 Bonus ------- Follower Combat Kills 61 Cogmind --------- Core Integrity 0/550 Matter 300/300 Energy 16/100 System Corruption 0% Temperature Cool (11) Movement Flying (57) Location -8/Materials Parts ------- > --- POWER (2) -------- (None) > --- PROPULSION (3) --- Light Treads Flight Unit Flight Unit > --- UTILITY (4) ------ Improved Heat Sink Improved Targeting Computer Improved Targeting Computer > --- WEAPON (2) ------- Field Laser > --- INVENTORY (5) ---- (None) Peak State ------------ > --- POWER ------------ Nuclear Core Light Nuclear Core > --- PROPULSION ------- Hover Unit Hover Unit Hover Unit > --- UTILITY ---------- Particle Charger Heavy Armor Plating Improved Light Armor Plating > --- WEAPON ----------- Field Laser Field Laser > --- INVENTORY -------- Improved Light Armor Plating Improved Light Armor Plating Improved Light Armor Plating Field Laser [Rating: 28] Favorites ----------- Power Light Nuclear Core Engine Light Ion Engine Power Core Light Nuclear Core Propulsion Hover Unit Treads Light Treads Hover Unit Hover Unit Flight Unit Flight Unit Utility Improved Light Armor Plating Device Particle Charger Storage Small Storage Unit Processor Improved Targeting Computer Protection Improved Light Armor Plating Weapon Field Laser Energy Gun Field Laser Energy Cannon Particle Cannon Launcher Grenade Launcher Build | -11 -10 -9 -9 -8 ------- Run | Yrd Mat Mat Min Mat Slots Evolved 4 | . . 2 . 2 Power 1 | . . . . 1 Propulsion 1 | . . 1 . . Utility 2 | . . 1 . 1 Weapon . | . . . . . Parts Attached 42 | 6 5 6 1 24 Power 7 | 1 . . 1 5 Engine 3 | 1 . . . 2 Core 4 | . . . 1 3 Reactor . | . . . . . Propulsion 14 | 2 2 2 . 8 Treads 5 | 2 . . . 3 Leg . | . . . . . Wheel . | . . . . . Hover 4 | . 2 2 . . Flight 5 | . . . . 5 Utility 13 | 1 2 3 . 7 Device 2 | . . . . 2 Storage 2 | 1 . . . 1 Processor 2 | . . . . 2 Hackware . | . . . . . Protection 7 | . 2 3 . 2 Artifact . | . . . . . Weapon 8 | 2 1 1 . 4 Energy Gun 6 | 2 . 1 . 3 Energy Cannon 1 | . . . . 1 Ballistic Gun . | . . . . . Ballistic Cannon . | . . . . . Launcher 1 | . 1 . . . Special Weapon . | . . . . . Impact Weapon . | . . . . . Slashing Weapon . | . . . . . Piercing Weapon . | . . . . . Special Melee Weapon . | . . . . . Unidentified Prototypes . | . . . . . Parts Lost 21 | . . . . 21 Power 5 | . . . . 5 Propulsion 7 | . . . . 7 Utility 6 | . . . . 6 Weapon 3 | . . . . 3 Highest Loss Streak 8 | . . . . 8 To Critical Strikes . | . . . . . Average Backups 3 | . 2 2 5 3 Power . | . 1 . . . Propulsion . | . 1 . . . Utility 1 | . . . 2 1 Weapon 1 | . . 1 3 1 Tool/Special . | . . . . . Unused Backups 1 | . . 1 . . Power 1 | . . 1 . . Propulsion . | . . . . . Utility . | . . . . . Weapon . | . . . . . Tool/Special . | . . . . . Average Slot Usage (%) 84 | . 97 94 100 78 Engine 7 | . 14 11 9 5 Core 7 | . . . 1 11 Treads 3 | . 3 . . 4 Hover 15 | . 24 33 33 8 Flight 1 | . . . . 2 Device 4 | . . . . 6 Storage 3 | . 14 6 . . Processor 3 | . . . . 4 Protection 18 | . 11 21 33 17 Energy Gun 14 | . 16 11 11 14 Energy Cannon 1 | . . . . 2 Launcher 3 | . 11 11 11 . Peak Build Rating 28 | 6 7 18 20 28 Average Rating 18 | 4 6 12 18 22 On Entrance 10 | . 6 7 18 20 Naked Turns . | . . . . . Heaviest Build 43 | 12 16 19 20 43 Greatest Support 60 | 40 40 18 18 60 Greatest Overweight (x) 11 | . 1 1 1 11 Average Overweight (x) 1 | . . . . 2 Largest Inventory Capacity 8 | 8 8 8 5 5 Average Capacity 5 | 5 8 6 5 5 Most Carried 5 | 1 4 5 5 5 Average Carried 3 | . 2 3 5 3 Final Capacity 8 | 8 8 5 5 5 Final Carried 5 | 1 3 5 5 . Class Distribution -------------------- 94% | Mutant 5% | Scavenger-Mutant Dominant Class ---------------- Mutant | -10/Materials Mutant | -9/Materials Mutant | -9/Mines Mutant | -8/Materials Resources | -11 -10 -9 -9 -8 ----------- Run | Yrd Mat Mat Min Mat Matter Collected 1026 | 187 39 69 245 486 Remotely . | . . . . . Salvage Created 1267 | . 39 175 114 939 Parts 88 | . 7 19 6 56 Haulers Intercepted . | . . . . . Recyclers Shooed . | . . . . . Parts Field Recycled . | . . . . . Retrieved Matter . | . . . . . Parts Self-Destructed . | . . . . . Prevented . | . . . . . Kills | -11 -10 -9 -9 -8 ------- Run | Yrd Mat Mat Min Mat Combat Hostiles Destroyed 43 | . 3 11 4 25 Guns 24 | . . 3 2 19 Cannons 4 | . . . . 4 AOE 13 | . 3 8 2 . Classes Destroyed 8 | . 2 3 . 3 Worker 1 | . . 1 . . Builder 3 | . . 1 . 2 Recycler 1 | . . . . 1 Watcher 2 | . 1 1 . . Swarmer 23 | . 3 6 1 13 Grunt 15 | . . 5 3 7 Sentry 4 | . . . . 4 Hunter 1 | . . . . 1 Best Kill Streak 10 | . 4 10 3 4 Combat Bots Only 9 | . 3 9 3 4 Max Kills in Single Turn 4 | . 4 2 2 1 Gunslinging . | . . . . . Exploded 3 | . 3 2 2 . Melee . | . . . . . Uniques/NPCs Destroyed . | . . . . . Combat | -11 -10 -9 -9 -8 -------- Run | Yrd Mat Mat Min Mat Hostile Shots Fired 328 | . . 37 9 282 Missed 79 | . . 12 4 63 Hits 249 | . . 25 5 219 Projectile 249 | . . 25 5 219 Critical Strikes 12 | . . 3 . 9 Damage Taken 2603 | . . 291 45 2267 Core 617 | . . 66 . 551 Absorbed by Shields . | . . . . . Ignored by Resistances 696 | . . 87 13 596 Core Remaining (%) 94 | 100 100 . 83 . Volleys Fired 105 | . 1 19 6 79 Largest 2 | . 2 2 2 2 Hottest 131 | . 80 93 93 131 Shots Fired 178 | . 2 36 9 131 Gun 130 | . 1 19 6 104 Cannon 27 | . . . . 27 Launcher 21 | . 1 17 3 . Special . | . . . . . Kinetic . | . . . . . Thermal 157 | . 1 19 6 131 Explosive 21 | . 1 17 3 . Electromagnetic . | . . . . . Robot Hit Streak 29 | . . 10 12 29 Robot Miss Streak 3 | . . 1 2 3 Penetration Max . | . . . . . Secondary Targets . | . . . . . Shots Hit Robots 141 | . . 28 6 107 Core Hits 70 | . 4 20 7 39 Critical Kills . | . . . . . Critical Parts Destroyed . | . . . . . Critical Strikes 7 | . . 1 2 4 Burn 7 | . . 1 2 4 Melee Attacks . | . . . . . Impact . | . . . . . Slashing . | . . . . . Piercing . | . . . . . Sneak Attacks . | . . . . . Combat Hostiles . | . . . . . Follow-up Attacks . | . . . . . Damage Inflicted 3428 | . 122 1146 192 1968 Guns 1845 | . . 209 68 1568 Cannons 393 | . . . . 393 Explosions 1158 | . 122 912 124 . Melee . | . . . . . Ramming 32 | . . 25 . 7 Kinetic . | . . . . . Thermal 2238 | . . 209 68 1961 Explosive 1158 | . 122 912 124 . Electromagnetic . | . . . . . Impact . | . . . . . Slashing . | . . . . . Piercing . | . . . . . Highest Corruption . | . . . . . Average Corruption . | . . . . . Corruption Purged . | . . . . . Corruption Blocked . | . . . . . Overload Shots . | . . . . . Overflow Damage 60 | . . 60 . . Projectiles . | . . . . . Explosions 60 | . . 60 . . Melee . | . . . . . Knockbacks 1 | . . 1 . . Impact 1 | . . 1 . . Kinetic . | . . . . . Secondary . | . . . . . Self-Inflicted Damage 79 | . . 79 . . Shots 5 | . . 5 . . Rammed 6 | . . 1 . 5 Targets Rammed 6 | . . 1 . 5 Kicked . | . . . . . Crushed . | . . . . . Highest Temperature 718 | . 24 464 158 718 Average Temperature 174 | . 14 211 69 177 Received Heat Transfer 1218 | . . 153 21 1044 Effects 53 | . . 4 . 49 Shutdowns 20 | . . 2 . 18 Energy Bleed 8 | . . 2 . 6 Interference 9 | . . . . 9 Matter Decay 4 | . . . . 4 Short Circuit 3 | . . . . 3 Damage (minor) 2 | . . . . 2 Damage (major) 4 | . . . . 4 Damage (core) 3 | . . . . 3 Siege Activations . | . . . . . Martial Activations . | . . . . . Shielding Activations . | . . . . . Robots Disrupted . | . . . . . Combat Hostiles . | . . . . . Robots Corrupted . | . . . . . Combat Hostiles . | . . . . . Parts Fried . | . . . . . Impact Corruptions . | . . . . . Robots Melted 2 | . . . . 2 Combat Hostiles 2 | . . . . 2 Parts Melted 23 | . . 1 3 19 Heat Transferred 5217 | . . 592 296 4329 Parts Sabotaged . | . . . . . Parts Stolen . | . . . . . Parts Stripped . | . . . . . Power Chain Reactions . | . . . . . Alert | -11 -10 -9 -9 -8 ------- Run | Yrd Mat Mat Min Mat Maximum Alert Level 1 | . . 1 . . Low Security (%) 98 | 100 100 82 100 100 Level 1 1 | . . 17 . . Level 2 . | . . . . . Level 3 . | . . . . . Level 4 . | . . . . . Level 5 . | . . . . . High Security . | . . . . . Max Security . | . . . . . Peak Influence 285 | . 88 285 175 150 Initial 90 | . . 6 90 53 Average 55 | . 31 88 148 48 Influence Increases 1471 | . 118 345 193 815 Destroy 0b10 Robot/C 960 | . 60 220 140 540 Destroy 0b10 Robot/NC 35 | . 5 15 . 15 Destroy Leader 184 | . 12 32 20 120 Allied During Kill 3 | . . . 3 . Disable Machine 54 | . . 27 . 27 Destroy Structure 70 | . 11 36 15 8 Partial Spotted 15 | . . 15 . . Lose Combat Pursuer 150 | . 30 . 15 105 Influence Decreases 1391 | . 100 88 305 898 Entered New Map 307 | . . 12 185 110 Time Decay 844 | . 100 76 80 588 Lost Part 180 | . . . . 180 Lost Ally 60 | . . . 40 20 Squads Dispatched 7 | . . 3 . 4 Investigation 3 | . . 1 . 2 Extermination . | . . . . . Reinforcement 3 | . . 2 . 1 Assault . | . . . . . Garrison 1 | . . . . 1 Intercept . | . . . . . Searches Triggered . | . . . . . Construction Impeded . | . . . . . Haulers Reinforced . | . . . . . Active Scanning Responses . | . . . . . Cargo Convoy Interrupts . | . . . . . Stealth | -11 -10 -9 -9 -8 --------- Run | Yrd Mat Mat Min Mat Distress Signals 7 | . 1 1 . 5 Communications Jammed . | . . . . . Distress Signals . | . . . . . Times Spotted 79 | . 5 21 6 47 Peak Tracking Total 10 | . 4 10 4 8 Tactical Retreats 7 | . 1 . 1 5 Traps | -11 -10 -9 -9 -8 ------- Run | Yrd Mat Mat Min Mat Traps Triggered 5 | . . 1 . 4 Indirectly . | . . . . . Trap Hack Attempts . | . . . . . Triggered . | . . . . . Disarmed . | . . . . . Reprogrammed . | . . . . . Reused . | . . . . . Traps Extracted . | . . . . . Installed . | . . . . . Triggered . | . . . . . Machines | -11 -10 -9 -9 -8 ---------- Run | Yrd Mat Mat Min Mat Machines Disabled 6 | . . 3 . 3 Max in Single Turn 3 | . . 1 . 3 Machines Repaired . | . . . . . Machines Dismantled . | . . . . . Machines Sabotaged . | . . . . . Overloaded Fab Kills . | . . . . . Hacking | -11 -10 -9 -9 -8 --------- Run | Yrd Mat Mat Min Mat Machines Accessed 3 | . . 2 . 1 Terminals 3 | . . 2 . 1 Fabricators . | . . . . . Repair Stations . | . . . . . Recycling Units . | . . . . . Scanalyzers . | . . . . . Garrison Access . | . . . . . Total Hacks 4 | . . 2 . 2 Successful 2 | . . 1 . 1 Failed 2 | . . 1 . 1 Catastrophic 1 | . . 1 . . Database Lockouts . | . . . . . Manual 3 | . . 2 . 1 Terminals 4 | . . 2 . 2 Fabricators . | . . . . . Repair Stations . | . . . . . Recycling Units . | . . . . . Scanalyzers . | . . . . . Garrison Access . | . . . . . Terminal Hacks 2 | . . 1 . 1 Recall Investigation 2 | . . 1 . 1 Fabricator Hacks . | . . . . . Repair Station Hacks . | . . . . . Recycling Unit Hacks . | . . . . . Scanalyzer . | . . . . . Garrison Access Hacks . | . . . . . Unauthorized Hacks . | . . . . . Terminals . | . . . . . Fabricators . | . . . . . Repair Stations . | . . . . . Recycling Units . | . . . . . Scanalyzers . | . . . . . Garrison Access . | . . . . . Data Cores Recovered . | . . . . . Used . | . . . . . Hacking Detections 2 | . . 1 . 1 Full Trace Events . | . . . . . Feedback Events . | . . . . . Feedback Blocked . | . . . . . Robot Schematics Acquired . | . . . . . Robots Built . | . . . . . Authchips . | . . . . . Time . | . . . . . Total Robot Build Rating . | . . . . . Part Schematics Acquired . | . . . . . Parts Built . | . . . . . Authchips . | . . . . . Time . | . . . . . Total Part Build Rating . | . . . . . Parts Repaired . | . . . . . Time . | . . . . . Parts Recycled . | . . . . . Recycled Matter . | . . . . . Retrieved Matter . | . . . . . Retrieved Components . | . . . . . Parts Scanalyzed . | . . . . . Part Schematics Acquired . | . . . . . Parts Damaged . | . . . . . Bothacking | -11 -10 -9 -9 -8 ------------ Run | Yrd Mat Mat Min Mat Used RIF Installer . | . . . . . Robots Hacked . | . . . . . Non-combat . | . . . . . Combat . | . . . . . Robot Hacks Applied . | . . . . . Relay Couplers Released . | . . . . . Fabnet Peak Effective % . | . . . . . Robots Rewired . | . . . . . Allies Hacked . | . . . . . Hacks Repelled . | . . . . . Allies | -11 -10 -9 -9 -8 -------- Run | Yrd Mat Mat Min Mat Total Allies 3 | . . . 3 . Largest Group 3 | . . . 3 1 Highest-Rated Group 40 | . . . 40 16 Highest-Rated Ally 16 | . . . 16 16 Total Orders . | . . . . . Ally Attacks 29 | . . . 18 11 Total Damage 254 | . . . 132 122 Kills 5 | . . . 3 2 Allies Corrupted . | . . . . . Allies Melted . | . . . . . Intel | -11 -10 -9 -9 -8 ------- Run | Yrd Mat Mat Min Mat Active Infowar (turns) . | . . . . . Robot Analysis Total . | . . . . . Derelict Logs Recovered 1 | . . . 1 . Drone Launches . | . . . . . Drone Recoveries . | . . . . . Exploration | -11 -10 -9 -9 -8 ------------- Run | Yrd Mat Mat Min Mat Turns Passed 2024 | 96 259 204 161 1304 Spaces Moved 1112 | 58 210 255 143 446 Core 64 | 5 . . . 59 Treads 198 | 53 13 . . 132 Legs . | . . . . . Wheels . | . . . . . Hover 775 | . 197 255 143 180 Flight 75 | . . . . 75 Fastest Speed 37 | 50 56 52 52 37 Average Speed 140 | 150 117 52 56 226 Slowest Speed 600 | 160 160 112 112 600 Overloaded Moves . | . . . . . Propulsion Burnouts . | . . . . . Robots Hopped . | . . . . . Potential Cave-ins . | . . . . . Cave-ins Triggered . | . . . . . Exploration Rate (%) 28 | 3 35 33 22 47 Regions Visited 4 Branch Regions 1 Pre-discovered Areas . | . . . . . Known Exits Taken . | . . . . . Unknown Exits Taken 4 | 1 1 1 1 . Scrap Searched 1 | . . . 1 . Spaces Dug . | . . . . . Terrain Destroyed 67 | . 11 33 15 8 Melee . | . . . . . Projectile . | . . . . . AOE 67 | . 11 33 15 8 Terrain Rammed . | . . . . . Walls Destroyed . | . . . . . Machines Disabled . | . . . . . Actions | -11 -10 -9 -9 -8 --------- Run | Yrd Mat Mat Min Mat Total 1384 | 64 218 287 214 601 Wait 79 | . . . 64 15 Move 1108 | 57 209 254 142 446 Hop . | . . . . . Pick Up 11 | 1 3 4 . 3 Fast Attach 26 | 6 . 1 . 19 Attach 16 | . 1 1 . 14 Detach 9 | . . . . 9 Swap 14 | . 4 4 1 5 Drop 10 | . . 3 1 6 Fire 105 | . 1 19 6 79 Melee . | . . . . . Ram 3 | . . 1 . 2 Kick . | . . . . . Crush 3 | . . . . 3 Escape Stasis . | . . . . . Rewire . | . . . . . Trap . | . . . . . Miscellaneous . | . . . . . Route ------- -11/Scrapyard -10/Materials (discovered 2 exits: *Mat / [*Min]) -9/Materials -9/Mines -8/Materials History --------- Turn | Location | Event 9 | -11/Scrapyard | Discovered new exit (range 16) 97 | -11/Scrapyard | Entered Materials 283 | -10/Materials | Discovered new exit (range 13) 303 | -10/Materials | Discovered new exit (range 8) 320 | -10/Materials | Build established: Mutant 356 | -10/Materials | Entered another Materials area 356 | -9/Materials | Evolved 2 slots: Propulsion x1, Utility x1 547 | -9/Materials | Discovered new exit (range 14) 560 | -9/Materials | Entered Mines 561 | -9/Mines | Destroyed 9 combat bots 567 | -9/Mines | Learned Materials terminal intel 601 | -9/Mines | Assisted by bots powering up and referring to "LRC-V3" 629 | -9/Mines | Discovered new exit (range 10) 721 | -9/Mines | Entered Materials 721 | -8/Materials | Accompanied by 1 ally 721 | -8/Materials | Evolved 2 slots: Power x1, Utility x1 722 | -8/Materials | Loaded intel: 12 terminal locations 1062 | -8/Materials | Core integrity fell below 50% 1828 | -8/Materials | Core integrity fell below 20% 1882 | -8/Materials | Lost 8 parts (2p3n3u) 1899 | -8/Materials | Garrison activated, responded to threat 2025 | -8/Materials | Destroyed by Y-45 Defender with Beam Rifle Last Messages --------------- 01917_ Acquired Flight Unit. 01918_ Slammed into K-01 Serf. 01924_ K-01 Serf collects debris. 01927_ Slammed into A-02 Transporter. 01949_ W-25 Informer distress signal alerts nearby ally. 01951_ M-13 Machinist repairs K-01 Serf Wheel. 01971_ Critical hit (Burn: +37). 01976_ Lgt. Ion Engine destroyed. 01978_ Critical hit (Burn: +37). 01984_ Field Laser destroyed. 01991_ M-13 Machinist repairs G-47 Trooper. 01992_ Deuterium Engine destroyed. 02004_ K-01 Serf destroyed. 02006_ Particle Cannon destroyed. 02015_ G-47 Trooper suffers critical hit (Burn). 02015_ Particle Gun melted. 02015_ G-47 Trooper destroyed. 02016_ K-01 Serf collects debris. 02017_ Acquired 5 matter. Map ----- +----------------------------------------------------+ | ??????????????????????????????????????????? ????# | | ?????????????????????????????????????????? ""????# | | ?????????????????????????????????????????# """???# | | ?????????????????????????????????????????# "S ???# | | ?????????????????????????????????????????# """ ??# | | ?????????????????????????????????????????# "" ??# | | ?????????????????????????????????????????# ## | | ?????????????????????????????????????????# """ # | | ?????????????????????????????????????????# """ + | | ?????????????????????????????????????????# """ # | | ?????????????????????????????????????????# """ # | | ?????????????????????????????????????????# """?# | | ?????????????????????????????????????????# ?# | | ???????????????????????????????????? ######## | | ???????????????????????????????????? | | ???????????????????????????????????? | | ???????????????????????????????????? | | ?????????????????????????????????????############ | | ????????????????????????????????????????????????# | | ??????????????????????#######???????????????????# | | ??????????????????????# ##################### | | ??????????????????????# T % | | ??????????????????????# "" =% | | ??????????????????????# = | | ??????????????????????# ###################### | | ??????????????????????###@###?????????????# | | ??????????????????????? ??????????????# | | ????????????????????? ! ????????????# | | ???????????????????# = ??????????# | | ???????????????????# ! #?????????# | | ??????????????????#Y """T""" #?????????# | | ??????????????????###############?????????######## | | | | | | | | | | | | | | | | | | | | | | | | | | | | | | | | | | | | | +----------------------------------------------------+ Best States ------------- Heat Dissipation 45 Energy Generation 23 Energy Capacity 415 Matter Stores 300 Matter Capacity 400 Sight Range 16 Terrain Scan Density 10 Armor Coverage 900 Resistance: KI 20 Resistance: TH 20 Resistance: EX 20 Resistance: EM 20 Resistance: I 20 Resistance: S 20 Resistance: P 20 Weapon Shielding 33 Evasion (%) 58 Targeting Accuracy 12 Recoil Reduction 3 Particle Charging 15 Offensive Hacking 10 Item Schematics ----------------- None Robot Schematics ------------------ None Fabricated ------------ Nothing Repaired ---------- Nothing Alien Tech Used ----------------- None Achievements -------------- None Challenges ------------ None Game ------ Seed RiotSingularityMace Manual? 0 Play Time 00:18:30 Cumulative 7.7 hours Start 2025.05.23 @ 01:27:12 End 2025.05.23 @ 01:47:58 Sessions 1 Manual Loads 0 Difficulty Adventurer Special Mode None Game No. 12 Rogue 3 Adventurer 9 Explorer 0 Win Type - Total 0 Types 0/0/0/0/0/0/0/0/0/0 Lore% 3 Gallery% 15 Achievement% 15 Wizard Run 0 Options --------- Layout 1 ASCII 0 Keyboard 1 Movement Numpad Keybinds 0 Fullscreen 1 Font 32/SmallcapsGlow Map View 50x40 Zoom Use 0% Tactical HUD 1 Map Filters NONE Filters NONE Steam 1 RUN: 2f126db9-800b-4174-b706-a5c7cf28addf